[Event "Early-Titled-Tuesday-Blitz-February-13-2024"]
[Site "Chess.com"]
[Date "2024.02.13"]
[Round "1"]
[White "HeroWilczek"]
[Black "Zohid6"]
[Result "0-1"]
[WhiteElo "2473"]
[BlackElo "2850"]
[TimeControl "180+1"]
[EndTime "8:04:41 PST"]
[Termination "Zohid6 won by resignation"]

1. e4 {[%clk 0:03:00.9]} 1... e5 {[%clk 0:02:58.2]} 2. Nf3 {[%clk 0:03:01]} 2...
Nf6 {[%clk 0:02:57.7]} 3. Nxe5 {[%clk 0:03:00.5]} 3... d6 {[%clk 0:02:58]} 4.
Nf3 {[%clk 0:03:00.5]} 4... Nxe4 {[%clk 0:02:58]} 5. Bd3 {[%clk 0:03:01.1]} 5...
Nf6 {[%clk 0:02:57.1]} 6. O-O {[%clk 0:03:01]} 6... d5 {[%clk 0:02:56.8]} 7. c3
{[%clk 0:03:01.3]} 7... Be7 {[%clk 0:02:53.2]} 8. Bc2 {[%clk 0:03:01.7]} 8...
O-O {[%clk 0:02:52.9]} 9. d4 {[%clk 0:03:02.3]} 9... h6 {[%clk 0:02:52.2]} 10.
Bf4 {[%clk 0:03:01.4]} 10... Bd6 {[%clk 0:02:52.4]} 11. Be5 {[%clk 0:02:54.6]}
11... Nc6 {[%clk 0:02:52]} 12. Re1 {[%clk 0:02:52.4]} 12... Bg4 {[%clk
0:02:50.7]} 13. h3 {[%clk 0:02:52]} 13... Bh5 {[%clk 0:02:49.8]} 14. Bxd6 {[%clk
0:02:49.6]} 14... cxd6 {[%clk 0:02:49.6]} 15. Nbd2 {[%clk 0:02:45.7]} 15... Qd7
{[%clk 0:02:49.1]} 16. Nf1 {[%clk 0:02:44.9]} 16... Rfe8 {[%clk 0:02:46.6]} 17.
Rxe8+ {[%clk 0:02:32.9]} 17... Rxe8 {[%clk 0:02:45.1]} 18. Ng3 {[%clk
0:02:33.6]} 18... Bg6 {[%clk 0:02:44.8]} 19. Bxg6 {[%clk 0:02:28.1]} 19... fxg6
{[%clk 0:02:45.7]} 20. Qc2 {[%clk 0:02:27.8]} 20... g5 {[%clk 0:02:31.1]} 21.
Re1 {[%clk 0:02:22.6]} 21... Rxe1+ {[%clk 0:02:28.8]} 22. Nxe1 {[%clk
0:02:23.5]} 22... Qe6 {[%clk 0:02:29.1]} 23. Nf3 {[%clk 0:02:19.4]} 23... Ne7
{[%clk 0:02:29]} 24. a4 {[%clk 0:02:15.9]} 24... Kf7 {[%clk 0:02:22.7]} 25. Qd2
{[%clk 0:02:10.7]} 25... Ng6 {[%clk 0:02:17.3]} 26. Qe2 {[%clk 0:01:56.8]} 26...
Nf4 {[%clk 0:02:13.3]} 27. Qxe6+ {[%clk 0:01:55.4]} 27... Kxe6 {[%clk
0:02:14.2]} 28. Kf1 {[%clk 0:01:53.6]} 28... Nd3 {[%clk 0:02:03]} 29. b4 {[%clk
0:01:39.1]} 29... Nb2 {[%clk 0:02:00.8]} 30. Ke2 {[%clk 0:01:28.9]} 30... Nxa4
{[%clk 0:01:57.6]} 31. Kd3 {[%clk 0:01:29.5]} 31... Ne4 {[%clk 0:01:56.8]} 32.
Nxe4 {[%clk 0:01:18.4]} 32... dxe4+ {[%clk 0:01:57.7]} 33. Kxe4 {[%clk
0:01:19.2]} 33... Nxc3+ {[%clk 0:01:57.7]} 34. Kd3 {[%clk 0:01:19.7]} 34... Nd5
{[%clk 0:01:57.4]} 35. Kc4 {[%clk 0:01:20]} 35... Nf4 {[%clk 0:01:57.1]} 36. g3
{[%clk 0:01:16.7]} 36... Nxh3 {[%clk 0:01:55.5]} 37. d5+ {[%clk 0:01:17.3]}
37... Kd7 {[%clk 0:01:54.2]} 0-1

[Event "Early-Titled-Tuesday-Blitz-February-13-2024"]
[Site "Chess.com"]
[Date "2024.02.13"]
[Round "1"]
[White "newyorkmouse"]
[Black "Irina_Mikhaylova"]
[Result "1-0"]
[WhiteElo "2639"]
[BlackElo "2289"]
[TimeControl "180+1"]
[EndTime "8:04:42 PST"]
[Termination "newyorkmouse won by resignation"]

1. Nf3 {[%clk 0:02:51.9]} 1... Nf6 {[%clk 0:02:59.9]} 2. c4 {[%clk 0:02:52.1]}
2... g6 {[%clk 0:02:59.8]} 3. b4 {[%clk 0:02:51.4]} 3... Bg7 {[%clk 0:02:59.3]}
4. Bb2 {[%clk 0:02:51.9]} 4... O-O {[%clk 0:02:59.8]} 5. g3 {[%clk 0:02:52.5]}
5... c6 {[%clk 0:02:59]} 6. Bg2 {[%clk 0:02:51.5]} 6... d5 {[%clk 0:02:59.4]} 7.
cxd5 {[%clk 0:02:51.8]} 7... cxd5 {[%clk 0:03:00.3]} 8. O-O {[%clk 0:02:50.8]}
8... e6 {[%clk 0:02:51.8]} 9. Qb3 {[%clk 0:02:40.8]} 9... Bd7 {[%clk 0:02:49.7]}
10. d3 {[%clk 0:02:39.3]} 10... Nc6 {[%clk 0:02:31]} 11. Nbd2 {[%clk 0:02:38.2]}
11... a5 {[%clk 0:02:23]} 12. b5 {[%clk 0:02:37.6]} 12... a4 {[%clk 0:02:22.6]}
13. Qa3 {[%clk 0:02:21.4]} 13... Na5 {[%clk 0:02:16.2]} 14. Qxa4 {[%clk
0:02:08.8]} 14... Nc4 {[%clk 0:02:10.8]} 15. Qb4 {[%clk 0:02:05.3]} 15... Nxb2
{[%clk 0:02:05.1]} 16. Qxb2 {[%clk 0:02:06.2]} 16... Ne4 {[%clk 0:02:05.3]} 17.
d4 {[%clk 0:02:05.5]} 17... Qa5 {[%clk 0:01:46.4]} 18. a4 {[%clk 0:02:02.9]}
18... Rfc8 {[%clk 0:01:15]} 19. Nxe4 {[%clk 0:01:46.4]} 19... dxe4 {[%clk
0:01:15.9]} 20. Nd2 {[%clk 0:01:46.7]} 20... Qc3 {[%clk 0:01:10]} 21. Qxc3
{[%clk 0:01:42.7]} 21... Rxc3 {[%clk 0:01:10.9]} 22. Nxe4 {[%clk 0:01:38.2]}
22... Rc4 {[%clk 0:01:07.5]} 23. e3 {[%clk 0:01:37.5]} 23... Bf8 {[%clk
0:00:59.1]} 24. Nf6+ {[%clk 0:01:36.6]} 1-0

[Event "Early-Titled-Tuesday-Blitz-February-13-2024"]
[Site "Chess.com"]
[Date "2024.02.13"]
[Round "1"]
[White "sergoy"]
[Black "Dinamo3"]
[Result "1-0"]
[WhiteElo "2971"]
[BlackElo "2523"]
[TimeControl "180+1"]
[EndTime "8:04:44 PST"]
[Termination "sergoy won by resignation"]

1. d4 {[%clk 0:03:00.9]} 1... Nf6 {[%clk 0:02:59.7]} 2. c4 {[%clk 0:03:01.4]}
2... g6 {[%clk 0:03:00.2]} 3. Nc3 {[%clk 0:03:01.2]} 3... Bg7 {[%clk 0:03:00.6]}
4. e4 {[%clk 0:03:01.6]} 4... d6 {[%clk 0:03:01.2]} 5. Nf3 {[%clk 0:03:02.2]}
5... O-O {[%clk 0:03:01.7]} 6. Be2 {[%clk 0:03:02.9]} 6... e5 {[%clk 0:03:02.2]}
7. O-O {[%clk 0:03:03.5]} 7... Nc6 {[%clk 0:03:02.6]} 8. d5 {[%clk 0:03:03.9]}
8... Ne7 {[%clk 0:03:03.2]} 9. b4 {[%clk 0:03:04.6]} 9... a5 {[%clk 0:03:03.3]}
10. bxa5 {[%clk 0:03:05.1]} 10... Rxa5 {[%clk 0:03:03.1]} 11. a4 {[%clk
0:03:05.9]} 11... b6 {[%clk 0:03:03.4]} 12. Nd2 {[%clk 0:03:05.5]} 12... Nd7
{[%clk 0:02:58.3]} 13. Nb3 {[%clk 0:03:05.7]} 13... Ra8 {[%clk 0:02:58.6]} 14.
a5 {[%clk 0:03:06.1]} 14... bxa5 {[%clk 0:02:58.8]} 15. Be3 {[%clk 0:03:01]}
15... f5 {[%clk 0:02:54.2]} 16. f3 {[%clk 0:03:01.3]} 16... Ba6 {[%clk
0:02:09.7]} 17. Nxa5 {[%clk 0:02:58.4]} 17... Nb6 {[%clk 0:02:09.7]} 18. c5
{[%clk 0:02:50.6]} 18... Bxe2 {[%clk 0:02:07.2]} 19. Qxe2 {[%clk 0:02:51.5]}
19... dxc5 {[%clk 0:02:07.6]} 20. Bxc5 {[%clk 0:02:52.1]} 20... Re8 {[%clk
0:01:54.8]} 21. Nc6 {[%clk 0:02:46.1]} 21... Nxc6 {[%clk 0:01:49.8]} 22. dxc6
{[%clk 0:02:47]} 22... Bf8 {[%clk 0:01:26.8]} 23. Bxb6 {[%clk 0:02:46]} 23...
cxb6 {[%clk 0:01:26.6]} 24. Nd5 {[%clk 0:02:46.4]} 24... Bc5+ {[%clk 0:01:26.3]}
25. Kh1 {[%clk 0:02:46.6]} 25... Qd6 {[%clk 0:01:20.5]} 26. Rxa8 {[%clk
0:02:44.1]} 26... Rxa8 {[%clk 0:01:20.2]} 27. c7 {[%clk 0:02:45]} 27... Rc8
{[%clk 0:01:14]} 28. Qa6 {[%clk 0:02:43.1]} 28... Rxc7 {[%clk 0:01:11.3]} 29.
Nxc7 {[%clk 0:02:35.2]} 29... Qxc7 {[%clk 0:01:12.2]} 30. Rd1 {[%clk 0:02:33.7]}
30... Bd4 {[%clk 0:01:05.9]} 31. exf5 {[%clk 0:02:18.9]} 31... gxf5 {[%clk
0:01:05.9]} 32. Qd3 {[%clk 0:02:19.6]} 32... Qc8 {[%clk 0:00:59.9]} 33. f4
{[%clk 0:02:07.4]} 33... Qe6 {[%clk 0:00:54.6]} 34. fxe5 {[%clk 0:02:02.4]}
34... Bxe5 {[%clk 0:00:55.5]} 35. Re1 {[%clk 0:02:01.1]} 35... Qf6 {[%clk
0:00:53.3]} 36. Qd5+ {[%clk 0:02:01]} 1-0

[Event "Early-Titled-Tuesday-Blitz-February-13-2024"]
[Site "Chess.com"]
[Date "2024.02.13"]
[Round "1"]
[White "ChessRespected"]
[Black "Hikaru"]
[Result "0-1"]
[WhiteElo "2550"]
[BlackElo "3381"]
[TimeControl "180+1"]
[EndTime "8:04:48 PST"]
[Termination "Hikaru won by resignation"]

1. d4 {[%clk 0:03:00.9]} 1... g6 {[%clk 0:02:58.7]} 2. e4 {[%clk 0:03:00]} 2...
Bg7 {[%clk 0:02:55.5]} 3. Nc3 {[%clk 0:02:59.8]} 3... c6 {[%clk 0:02:55.6]} 4.
f4 {[%clk 0:02:58]} 4... d5 {[%clk 0:02:55.8]} 5. e5 {[%clk 0:02:57.8]} 5... h5
{[%clk 0:02:56.2]} 6. Nf3 {[%clk 0:02:56.4]} 6... Bg4 {[%clk 0:02:56.1]} 7. h3
{[%clk 0:02:56.4]} 7... Bxf3 {[%clk 0:02:56.5]} 8. Qxf3 {[%clk 0:02:56.7]} 8...
e6 {[%clk 0:02:57.4]} 9. Be3 {[%clk 0:02:53.2]} 9... h4 {[%clk 0:02:57]} 10. Bd3
{[%clk 0:02:50.2]} 10... Ne7 {[%clk 0:02:56]} 11. Ne2 {[%clk 0:02:43.6]} 11...
Nf5 {[%clk 0:02:55.7]} 12. Bf2 {[%clk 0:02:41.9]} 12... Nd7 {[%clk 0:02:53.4]}
13. a4 {[%clk 0:02:39.8]} 13... a5 {[%clk 0:02:44.9]} 14. c3 {[%clk 0:02:36.7]}
14... Bf8 {[%clk 0:02:43.8]} 15. O-O {[%clk 0:02:21.5]} 15... Rc8 {[%clk
0:02:42.2]} 16. Rac1 {[%clk 0:02:18.8]} 16... Be7 {[%clk 0:02:39.6]} 17. Bxf5
{[%clk 0:02:02.7]} 17... exf5 {[%clk 0:02:34.8]} 18. e6 {[%clk 0:01:56.2]} 18...
fxe6 {[%clk 0:02:34.7]} 19. Qe3 {[%clk 0:01:53.1]} 19... Kf7 {[%clk 0:02:34.4]}
20. Kh1 {[%clk 0:01:50.6]} 20... Nf6 {[%clk 0:02:34.2]} 21. Ng1 {[%clk
0:01:51.1]} 21... Ne4 {[%clk 0:02:34.1]} 22. Nf3 {[%clk 0:01:51.8]} 22... g5
{[%clk 0:02:27.5]} 23. fxg5 {[%clk 0:01:47.8]} 23... Bxg5 {[%clk 0:02:27.7]} 24.
Ne5+ {[%clk 0:01:43.7]} 24... Ke8 {[%clk 0:02:24.1]} 25. Qf3 {[%clk 0:01:39.7]}
25... Bxc1 {[%clk 0:02:23.4]} 26. Rxc1 {[%clk 0:01:38.7]} 26... Qg5 {[%clk
0:02:22.5]} 27. Re1 {[%clk 0:01:35.4]} 27... Rc7 {[%clk 0:02:19.9]} 28. c4
{[%clk 0:01:34.7]} 28... Rg7 {[%clk 0:02:15.8]} 29. cxd5 {[%clk 0:01:32.1]}
29... exd5 {[%clk 0:02:16.7]} 30. Be3 {[%clk 0:01:04.3]} 30... Qg3 {[%clk
0:02:15.4]} 31. Rf1 {[%clk 0:01:01.2]} 31... Qxf3 {[%clk 0:02:14.3]} 32. Rxf3
{[%clk 0:01:02.1]} 32... Rhg8 {[%clk 0:02:13.7]} 0-1

[Event "Early-Titled-Tuesday-Blitz-February-13-2024"]
[Site "Chess.com"]
[Date "2024.02.13"]
[Round "1"]
[White "Alenzer"]
[Black "KamlaPasand"]
[Result "0-1"]
[WhiteElo "2118"]
[BlackElo "2573"]
[TimeControl "180+1"]
[EndTime "8:05:02 PST"]
[Termination "KamlaPasand won on time"]

1. d4 {[%clk 0:02:59.1]} 1... d6 {[%clk 0:03:00]} 2. e4 {[%clk 0:02:57.1]} 2...
Nf6 {[%clk 0:03:00.9]} 3. Nc3 {[%clk 0:02:54.5]} 3... g6 {[%clk 0:03:01.8]} 4.
Bg5 {[%clk 0:02:52.8]} 4... Bg7 {[%clk 0:03:02.7]} 5. Qd2 {[%clk 0:02:45.7]}
5... h6 {[%clk 0:03:02.2]} 6. Bh4 {[%clk 0:02:41.7]} 6... g5 {[%clk 0:02:59.6]}
7. Bg3 {[%clk 0:02:38.6]} 7... c6 {[%clk 0:02:59.4]} 8. O-O-O {[%clk 0:02:33]}
8... b5 {[%clk 0:02:59.2]} 9. f4 {[%clk 0:02:26.6]} 9... b4 {[%clk 0:02:57.4]}
10. Nce2 {[%clk 0:02:08.5]} 10... Qa5 {[%clk 0:02:57.1]} 11. Kb1 {[%clk
0:01:56.5]} 11... Nxe4 {[%clk 0:02:56.8]} 12. Qe3 {[%clk 0:01:29.7]} 12... f5
{[%clk 0:02:56.7]} 13. Nf3 {[%clk 0:01:17.7]} 13... Be6 {[%clk 0:02:55.2]} 14.
Nc1 {[%clk 0:00:39.2]} 14... g4 {[%clk 0:02:32.7]} 15. Nd2 {[%clk 0:00:34.1]}
15... Bd5 {[%clk 0:02:24.3]} 16. Nxe4 {[%clk 0:00:26.3]} 16... Bxe4 {[%clk
0:02:24.1]} 17. Bd3 {[%clk 0:00:26]} 17... Qd5 {[%clk 0:02:16.7]} 18. Bxe4
{[%clk 0:00:25]} 18... Qxe4 {[%clk 0:02:17]} 19. Qxe4 {[%clk 0:00:25.3]} 19...
fxe4 {[%clk 0:02:17.9]} 20. Rde1 {[%clk 0:00:08.6]} 20... d5 {[%clk 0:02:17.7]}
21. Bh4 {[%clk 0:00:08]} 21... Nd7 {[%clk 0:02:16.7]} 22. Rhf1 {[%clk
0:00:07.6]} 22... Nb6 {[%clk 0:02:12.5]} 23. Ne2 {[%clk 0:00:02.6]} 23... Nc4
{[%clk 0:02:11.7]} 0-1

[Event "Early-Titled-Tuesday-Blitz-February-13-2024"]
[Site "Chess.com"]
[Date "2024.02.13"]
[Round "1"]
[White "CMmauricio"]
[Black "Seinw1"]
[Result "1-0"]
[WhiteElo "2850"]
[BlackElo "2474"]
[TimeControl "180+1"]
[EndTime "8:05:06 PST"]
[Termination "CMmauricio won by resignation"]

1. d4 {[%clk 0:02:51.2]} 1... Nf6 {[%clk 0:02:59.9]} 2. e3 {[%clk 0:02:45.2]}
2... d5 {[%clk 0:02:59.9]} 3. f4 {[%clk 0:02:43.1]} 3... b6 {[%clk 0:02:56.7]}
4. Nf3 {[%clk 0:02:44]} 4... Bb7 {[%clk 0:02:57]} 5. Bd3 {[%clk 0:02:43.4]} 5...
Nbd7 {[%clk 0:02:56.8]} 6. c3 {[%clk 0:02:44]} 6... Ne4 {[%clk 0:02:57]} 7. O-O
{[%clk 0:02:44.8]} 7... Ndf6 {[%clk 0:02:57]} 8. Ne5 {[%clk 0:02:45.5]} 8... e6
{[%clk 0:02:56.7]} 9. Bb5+ {[%clk 0:02:44.4]} 9... Ke7 {[%clk 0:02:53.5]} 10. b3
{[%clk 0:02:33.9]} 10... Nd6 {[%clk 0:02:43.7]} 11. Bd3 {[%clk 0:02:27.8]} 11...
Nfe4 {[%clk 0:02:40.5]} 12. Bb2 {[%clk 0:02:24.1]} 12... f6 {[%clk 0:02:39]} 13.
Nf3 {[%clk 0:02:22.8]} 13... c5 {[%clk 0:02:36.4]} 14. Nbd2 {[%clk 0:02:23.2]}
14... g6 {[%clk 0:02:30.1]} 15. Rc1 {[%clk 0:02:19.7]} 15... Bg7 {[%clk
0:02:29.7]} 16. Qe2 {[%clk 0:02:10.5]} 16... Re8 {[%clk 0:02:29]} 17. Rfd1
{[%clk 0:02:10.6]} 17... Kf8 {[%clk 0:02:28.9]} 18. c4 {[%clk 0:02:08.9]} 18...
cxd4 {[%clk 0:02:12.3]} 19. Nxd4 {[%clk 0:02:04.1]} 19... f5 {[%clk 0:02:07.8]}
20. cxd5 {[%clk 0:02:03.5]} 20... exd5 {[%clk 0:01:58.2]} 21. Nxe4 {[%clk
0:02:02.6]} 21... Nxe4 {[%clk 0:01:51.5]} 22. Bxe4 {[%clk 0:02:02.3]} 22... Rxe4
{[%clk 0:01:52.2]} 23. Qd2 {[%clk 0:01:55.3]} 23... Qe7 {[%clk 0:01:48.4]} 24.
Rc3 {[%clk 0:01:47.2]} 24... Bxd4 {[%clk 0:01:37.6]} 25. exd4 {[%clk 0:01:46.8]}
25... Re2 {[%clk 0:01:37.7]} 26. Ba3 {[%clk 0:01:36.3]} 26... Rxd2 {[%clk
0:01:07.9]} 27. Bxe7+ {[%clk 0:01:35.9]} 27... Kxe7 {[%clk 0:01:08.4]} 28. Rxd2
{[%clk 0:01:36.7]} 28... Ba6 {[%clk 0:01:09]} 29. Rc7+ {[%clk 0:01:36.2]} 29...
Kd6 {[%clk 0:01:09.6]} 30. Rxh7 {[%clk 0:01:36.3]} 30... Re8 {[%clk 0:01:08.1]}
31. Rg7 {[%clk 0:01:31.1]} 31... Re1+ {[%clk 0:01:04.7]} 32. Kf2 {[%clk
0:01:31.4]} 32... Rf1+ {[%clk 0:01:05.4]} 33. Kg3 {[%clk 0:01:32]} 33... Re1
{[%clk 0:00:51.7]} 34. Rxg6+ {[%clk 0:01:31.7]} 1-0

[Event "Early-Titled-Tuesday-Blitz-February-13-2024"]
[Site "Chess.com"]
[Date "2024.02.13"]
[Round "1"]
[White "SantoBlue"]
[Black "MrChessSponge"]
[Result "1-0"]
[WhiteElo "2959"]
[BlackElo "2518"]
[TimeControl "180+1"]
[EndTime "8:05:11 PST"]
[Termination "SantoBlue won by checkmate"]

1. e4 {[%clk 0:02:57.1]} 1... c5 {[%clk 0:02:43.3]} 2. Nf3 {[%clk 0:02:56.8]}
2... d6 {[%clk 0:02:41.2]} 3. Bb5+ {[%clk 0:02:54.7]} 3... Nd7 {[%clk
0:02:40.8]} 4. c3 {[%clk 0:02:54.6]} 4... Nf6 {[%clk 0:02:40.1]} 5. Qe2 {[%clk
0:02:54.4]} 5... e6 {[%clk 0:02:35.6]} 6. d4 {[%clk 0:02:52.8]} 6... cxd4 {[%clk
0:02:35.6]} 7. cxd4 {[%clk 0:02:53.7]} 7... d5 {[%clk 0:02:35.4]} 8. e5 {[%clk
0:02:52.2]} 8... Ne4 {[%clk 0:02:31.6]} 9. O-O {[%clk 0:02:52.7]} 9... Be7
{[%clk 0:02:27.7]} 10. Nbd2 {[%clk 0:02:53.1]} 10... Nxd2 {[%clk 0:02:25.3]} 11.
Bxd2 {[%clk 0:02:53.2]} 11... O-O {[%clk 0:02:22]} 12. Bd3 {[%clk 0:02:53]}
12... Nb6 {[%clk 0:02:12.9]} 13. g3 {[%clk 0:02:45.1]} 13... Bd7 {[%clk
0:02:12.2]} 14. h4 {[%clk 0:02:44.3]} 14... Nc4 {[%clk 0:02:12.1]} 15. Bf4
{[%clk 0:02:43.5]} 15... Rc8 {[%clk 0:02:09.2]} 16. Kg2 {[%clk 0:02:42.3]} 16...
Qb6 {[%clk 0:02:02.8]} 17. Bxh7+ {[%clk 0:02:29.5]} 17... Kxh7 {[%clk
0:01:58.1]} 18. Ng5+ {[%clk 0:02:29.7]} 18... Bxg5 {[%clk 0:01:58.2]} 19. hxg5
{[%clk 0:02:27.8]} 19... Kg6 {[%clk 0:01:18.6]} 20. Rh1 {[%clk 0:01:47.6]} 20...
Rh8 {[%clk 0:01:15.1]} 21. Qd3+ {[%clk 0:01:48.2]} 21... f5 {[%clk 0:01:14.2]}
22. exf6+ {[%clk 0:01:46.1]} 22... Kf7 {[%clk 0:01:14.1]} 23. Rh7 {[%clk
0:01:46.4]} 23... Rcg8 {[%clk 0:01:05.3]} 24. Rah1 {[%clk 0:01:46.4]} 24... Rxh7
{[%clk 0:01:04.2]} 25. Qxh7 {[%clk 0:01:45.4]} 25... Qxd4 {[%clk 0:01:01.5]} 26.
g6+ {[%clk 0:01:42]} 26... Kxf6 {[%clk 0:00:37.7]} 27. Qh4+ {[%clk 0:01:40]}
27... Kf5 {[%clk 0:00:34.1]} 28. Qh5+ {[%clk 0:01:37.2]} 28... Kf6 {[%clk
0:00:31.3]} 29. Qg5# {[%clk 0:01:37.3]} 1-0

[Event "Early-Titled-Tuesday-Blitz-February-13-2024"]
[Site "Chess.com"]
[Date "2024.02.13"]
[Round "1"]
[White "Juwen"]
[Black "Chesstiger64"]
[Result "1/2-1/2"]
[WhiteElo "2628"]
[BlackElo "2298"]
[TimeControl "180+1"]
[EndTime "8:05:15 PST"]
[Termination "Game drawn by agreement"]

1. d4 {[%clk 0:03:00.9]} 1... d6 {[%clk 0:02:58.5]} 2. Nf3 {[%clk 0:03:01.1]}
2... Bg4 {[%clk 0:02:56.6]} 3. Nbd2 {[%clk 0:02:57.8]} 3... Nd7 {[%clk
0:02:56.2]} 4. h3 {[%clk 0:02:55.3]} 4... Bh5 {[%clk 0:02:56.8]} 5. g3 {[%clk
0:02:51.3]} 5... e5 {[%clk 0:02:55.2]} 6. dxe5 {[%clk 0:02:50.6]} 6... Nxe5
{[%clk 0:02:54.6]} 7. Bg2 {[%clk 0:02:48.8]} 7... c6 {[%clk 0:02:53.1]} 8. O-O
{[%clk 0:02:48.3]} 8... Nf6 {[%clk 0:02:52.8]} 9. c4 {[%clk 0:02:46.8]} 9...
Nxf3+ {[%clk 0:02:52.4]} 10. Nxf3 {[%clk 0:02:46]} 10... Be7 {[%clk 0:02:51.8]}
11. b3 {[%clk 0:02:45.7]} 11... O-O {[%clk 0:02:51.2]} 12. Bb2 {[%clk
0:02:46.4]} 12... Qc7 {[%clk 0:02:51.5]} 13. Qd4 {[%clk 0:02:45.4]} 13... Bxf3
{[%clk 0:02:33.1]} 14. Bxf3 {[%clk 0:02:44.3]} 14... Rfe8 {[%clk 0:02:33]} 15.
Rad1 {[%clk 0:02:42.6]} 15... a5 {[%clk 0:02:29.5]} 16. Rfe1 {[%clk 0:02:38.5]}
16... a4 {[%clk 0:02:28.9]} 17. b4 {[%clk 0:02:38.2]} 17... Rad8 {[%clk
0:02:26.6]} 18. g4 {[%clk 0:02:34.4]} 18... Bf8 {[%clk 0:02:23.4]} 19. a3 {[%clk
0:02:26.3]} 19... Qe7 {[%clk 0:02:21.5]} 20. e3 {[%clk 0:02:25]} 20... Nd7
{[%clk 0:02:18.8]} 21. Bg2 {[%clk 0:02:22.8]} 21... Ne5 {[%clk 0:02:18.7]} 22.
f4 {[%clk 0:02:21.8]} 22... Ng6 {[%clk 0:02:18.7]} 23. b5 {[%clk 0:01:57.7]}
23... d5 {[%clk 0:02:10.1]} 24. cxd5 {[%clk 0:01:52]} 24... cxd5 {[%clk
0:02:04.7]} 25. Bxd5 {[%clk 0:01:45.1]} 25... Qh4 {[%clk 0:01:51.5]} 26. Kg2
{[%clk 0:01:32.1]} 26... Rxd5 {[%clk 0:01:49.3]} 27. Qxd5 {[%clk 0:01:32]} 27...
Nxf4+ {[%clk 0:01:49.6]} 28. exf4 {[%clk 0:01:31.8]} 28... Rxe1 {[%clk
0:01:49.6]} 29. Rxe1 {[%clk 0:01:19.1]} 29... Qxe1 {[%clk 0:01:50.5]} 30. Qd3
{[%clk 0:01:19.1]} 30... Qe6 {[%clk 0:01:40.3]} 31. Kg3 {[%clk 0:01:14.8]} 31...
Qa2 {[%clk 0:01:39.4]} 32. Qd4 {[%clk 0:01:11.1]} 32... Qb3+ {[%clk 0:01:38.1]}
1/2-1/2

[Event "Early-Titled-Tuesday-Blitz-February-13-2024"]
[Site "Chess.com"]
[Date "2024.02.13"]
[Round "1"]
[White "dropstoneDP"]
[Black "Kaua18"]
[Result "1-0"]
[WhiteElo "3070"]
[BlackElo "2542"]
[TimeControl "180+1"]
[EndTime "8:05:16 PST"]
[Termination "dropstoneDP won by resignation"]

1. e4 {[%clk 0:03:00.9]} 1... e6 {[%clk 0:02:58.7]} 2. d4 {[%clk 0:02:51.4]}
2... d5 {[%clk 0:02:58.2]} 3. e5 {[%clk 0:02:50.9]} 3... c5 {[%clk 0:02:56.6]}
4. c3 {[%clk 0:02:49.5]} 4... Nc6 {[%clk 0:02:54]} 5. Nf3 {[%clk 0:02:48.6]}
5... Qb6 {[%clk 0:02:51]} 6. a3 {[%clk 0:02:44.7]} 6... c4 {[%clk 0:02:48.4]} 7.
Nbd2 {[%clk 0:02:43.7]} 7... Na5 {[%clk 0:02:46.1]} 8. Be2 {[%clk 0:02:37.2]}
8... Bd7 {[%clk 0:02:46.2]} 9. Rb1 {[%clk 0:02:35.6]} 9... Rc8 {[%clk
0:02:33.4]} 10. O-O {[%clk 0:02:34.6]} 10... Qc7 {[%clk 0:02:31]} 11. h4 {[%clk
0:02:29.8]} 11... Ne7 {[%clk 0:02:25.5]} 12. h5 {[%clk 0:02:27.3]} 12... Nec6
{[%clk 0:02:23.7]} 13. Re1 {[%clk 0:02:25.6]} 13... h6 {[%clk 0:02:17.3]} 14.
Nf1 {[%clk 0:02:24.1]} 14... Be7 {[%clk 0:02:15.9]} 15. Bf4 {[%clk 0:02:23.3]}
15... f5 {[%clk 0:01:56.2]} 16. exf6 {[%clk 0:02:17.7]} 16... Qxf4 {[%clk
0:01:54.8]} 17. fxe7 {[%clk 0:02:18.1]} 17... Kxe7 {[%clk 0:01:39.9]} 18. g3
{[%clk 0:02:16.9]} 18... Qf7 {[%clk 0:01:33.1]} 19. N1h2 {[%clk 0:02:15.4]}
19... Qxh5 {[%clk 0:01:17.2]} 20. Ne5 {[%clk 0:02:12.3]} 20... Qg5 {[%clk
0:01:04.4]} 21. Bg4 {[%clk 0:02:11.2]} 21... h5 {[%clk 0:00:42.1]} 22. Bh3
{[%clk 0:02:02.9]} 22... Rh6 {[%clk 0:00:41.6]} 23. Nhf3 {[%clk 0:02:00]} 23...
Qf6 {[%clk 0:00:35.1]} 24. Nxd7 {[%clk 0:01:59.9]} 24... Kxd7 {[%clk 0:00:35]}
25. Rxe6 {[%clk 0:02:00.5]} 25... Qxe6 {[%clk 0:00:31.1]} 26. Bxe6+ {[%clk
0:02:01.4]} 26... Rxe6 {[%clk 0:00:31]} 27. Ng5 {[%clk 0:02:01.4]} 27... Ree8
{[%clk 0:00:18.1]} 28. Qxh5 {[%clk 0:01:57]} 28... Kc7 {[%clk 0:00:16.4]} 29.
Qf7+ {[%clk 0:01:55.4]} 29... Re7 {[%clk 0:00:16.6]} 30. Qxd5 {[%clk 0:01:55]}
30... Rd8 {[%clk 0:00:16.6]} 31. Ne6+ {[%clk 0:01:54]} 1-0

[Event "Early-Titled-Tuesday-Blitz-February-13-2024"]
[Site "Chess.com"]
[Date "2024.02.13"]
[Round "1"]
[White "MariamiJaniashvili"]
[Black "valorant64"]
[Result "0-1"]
[WhiteElo "2189"]
[BlackElo "2594"]
[TimeControl "180+1"]
[EndTime "8:05:19 PST"]
[Termination "valorant64 won by resignation"]

1. d4 {[%clk 0:02:57.5]} 1... e6 {[%clk 0:02:54.4]} 2. c4 {[%clk 0:02:56.5]}
2... d5 {[%clk 0:02:54.5]} 3. cxd5 {[%clk 0:02:47.2]} 3... exd5 {[%clk
0:02:54.2]} 4. Nc3 {[%clk 0:02:48]} 4... Nf6 {[%clk 0:02:54]} 5. Bg5 {[%clk
0:02:39.8]} 5... c6 {[%clk 0:02:53.8]} 6. Qc2 {[%clk 0:02:37.7]} 6... Be7 {[%clk
0:02:53.8]} 7. e3 {[%clk 0:02:37.6]} 7... Nbd7 {[%clk 0:02:54]} 8. Bd3 {[%clk
0:02:37.9]} 8... O-O {[%clk 0:02:53.6]} 9. Nge2 {[%clk 0:02:36.9]} 9... h6
{[%clk 0:02:54.1]} 10. Bh4 {[%clk 0:02:36.9]} 10... Re8 {[%clk 0:02:54.1]} 11.
f3 {[%clk 0:02:37.5]} 11... c5 {[%clk 0:02:51.3]} 12. O-O {[%clk 0:02:35.1]}
12... c4 {[%clk 0:02:51.2]} 13. Bf5 {[%clk 0:02:33.6]} 13... Nf8 {[%clk
0:02:51.1]} 14. Bxc8 {[%clk 0:02:30.9]} 14... Rxc8 {[%clk 0:02:52]} 15. e4
{[%clk 0:02:30.9]} 15... dxe4 {[%clk 0:02:49.4]} 16. fxe4 {[%clk 0:02:31.8]}
16... Ng6 {[%clk 0:02:49.7]} 17. Bg3 {[%clk 0:02:24.5]} 17... Bb4 {[%clk
0:02:44.2]} 18. e5 {[%clk 0:02:18.8]} 18... Bxc3 {[%clk 0:02:43.4]} 19. bxc3
{[%clk 0:02:17.5]} 19... Nd5 {[%clk 0:02:43.4]} 20. Rf3 {[%clk 0:02:13.1]} 20...
Qd7 {[%clk 0:02:42.9]} 21. Raf1 {[%clk 0:02:10.7]} 21... Re7 {[%clk 0:02:40.2]}
22. Be1 {[%clk 0:02:02.8]} 22... b5 {[%clk 0:02:39.6]} 23. a3 {[%clk 0:01:56.6]}
23... a6 {[%clk 0:02:39.2]} 24. Ng3 {[%clk 0:01:54.7]} 24... a5 {[%clk
0:02:29.6]} 25. Ne4 {[%clk 0:01:54.2]} 25... Qa7 {[%clk 0:02:26]} 26. Nd6 {[%clk
0:01:50]} 26... Rf8 {[%clk 0:02:23.3]} 27. Kh1 {[%clk 0:01:35.4]} 27... b4
{[%clk 0:02:20]} 28. axb4 {[%clk 0:01:32.4]} 28... axb4 {[%clk 0:02:17.9]} 29.
Nxc4 {[%clk 0:01:27]} 29... bxc3 {[%clk 0:02:16.7]} 30. Bxc3 {[%clk 0:01:04.8]}
30... Rc7 {[%clk 0:02:06.2]} 31. Nd6 {[%clk 0:00:42.7]} 31... Qa6 {[%clk
0:02:04.3]} 32. Ra1 {[%clk 0:00:23.6]} 32... Qxa1+ {[%clk 0:02:02.3]} 33. Bxa1
{[%clk 0:00:22.9]} 33... Rxc2 {[%clk 0:02:01.9]} 34. Rf1 {[%clk 0:00:23.6]} 0-1